[Event "Titled Tuesday Blitz July 4 Early 2023"]
[White "Paravyan, David"]
[Black "Wagner, Dennis"]
[WhiteFideId "4194985"]
[BlackFideId "24650684"]
[WhiteElo "2984"]
[BlackElo "2734"]
[Result "1-0"]
[Round "6"]
[TimeControl "180+2"]
[Date "2023.07.04"]
[WhiteClock "0:00:04"]
[BlackClock "0:00:00"]
[Board "16"]

1. d4 {[%clk 0:03:00]}  d5 {[%clk 0:03:00]} 2. c4 {[%clk 0:03:01]}  e6 {[%clk 0:03:00]} 3. Nf3 {[%clk 0:03:01]}  Nf6 {[%clk 0:03:01]} 4. g3 {[%clk 0:03:01]}  Be7 {[%clk 0:03:00]} 5. Bg2 {[%clk 0:03:02]}  O-O {[%clk 0:03:01]} 6. O-O {[%clk 0:03:02]}  dxc4 {[%clk 0:03:02]} 7. Qc2 {[%clk 0:03:03]}  a6 {[%clk 0:03:02]} 8. a4 {[%clk 0:03:03]}  Bd7 {[%clk 0:03:03]} 9. Qxc4 {[%clk 0:03:03]}  Bc6 {[%clk 0:03:03]} 10. Bg5 {[%clk 0:03:02]}  Nbd7 {[%clk 0:03:03]} 11. Nc3 {[%clk 0:03:01]}  h6 {[%clk 0:03:03]} 12. Bxf6 {[%clk 0:03:00]}  Nxf6 {[%clk 0:03:04]} 13. Rfd1 {[%clk 0:03:00]}  a5 {[%clk 0:03:03]} 14. e3 {[%clk 0:03:00]}  Qb8 {[%clk 0:02:52]} 15. Rac1 {[%clk 0:02:59]}  Rd8 {[%clk 0:02:51]} 16. Qe2 {[%clk 0:02:56]}  Bxf3 {[%clk 0:02:46]} 17. Bxf3 {[%clk 0:02:55]}  c6 {[%clk 0:02:47]} 18. Kg2 {[%clk 0:02:56]}  g6 {[%clk 0:02:46]} 19. h4 {[%clk 0:02:52]}  h5 {[%clk 0:02:46]} 20. e4 {[%clk 0:02:52]}  Ra6 {[%clk 0:02:40]} 21. e5 {[%clk 0:02:52]}  Nd5 {[%clk 0:02:22]} 22. Bxd5 {[%clk 0:02:51]}  cxd5 {[%clk 0:02:22]} 23. Nb5 {[%clk 0:02:52]}  Rc6 {[%clk 0:02:21]} 24. Rc3 {[%clk 0:02:52]}  Qc8 {[%clk 0:02:14]} 25. Na7 {[%clk 0:02:50]}  Rxc3 {[%clk 0:02:09]} 26. Nxc8 {[%clk 0:02:50]}  Rcxc8 {[%clk 0:02:10]} 27. Qb5 {[%clk 0:02:47]}  Rc2 {[%clk 0:01:56]} 28. Rd3 {[%clk 0:02:47]}  Bb4 {[%clk 0:01:53]} 29. Qxb7 {[%clk 0:02:34]}  Rxb2 {[%clk 0:01:50]} 30. Rf3 {[%clk 0:02:34]}  Rf8 {[%clk 0:01:50]} 31. Kh3 {[%clk 0:02:16]}  Rd2 {[%clk 0:01:49]} 32. Qa7 {[%clk 0:02:13]}  Rd1 {[%clk 0:01:38]} 33. Kg2 {[%clk 0:02:07]}  Rd2 {[%clk 0:01:38]} 34. Rf4 {[%clk 0:01:42]}  Ra2 {[%clk 0:01:34]} 35. g4 {[%clk 0:01:39]}  Bd2 {[%clk 0:01:33]} 36. Rf6 {[%clk 0:01:09]}  hxg4 {[%clk 0:01:33]} 37. Kg3 {[%clk 0:01:10]}  Rxa4 {[%clk 0:01:28]} 38. Kxg4 {[%clk 0:00:52]}  Bc3 {[%clk 0:01:24]} 39. Rf4 {[%clk 0:00:52]}  Bd2 {[%clk 0:01:24]} 40. Rf3 {[%clk 0:00:53]}  Rc4 {[%clk 0:01:10]} 41. h5 {[%clk 0:00:52]}  Bc3 {[%clk 0:00:30]} 42. hxg6 {[%clk 0:00:51]}  Bxd4 {[%clk 0:00:30]} 43. gxf7+ {[%clk 0:00:43]}  Kg7 {[%clk 0:00:30]} 44. Qd7 {[%clk 0:00:31]}  Bxe5+ {[%clk 0:00:30]} 45. Kh5 {[%clk 0:00:20]}  Bf6 {[%clk 0:00:18]} 46. Rg3+ {[%clk 0:00:13]}  Kh7 {[%clk 0:00:19]} 47. Rg4 {[%clk 0:00:04]}  Rxg4 {[%clk 0:00:17]} 48. Kxg4 {[%clk 0:00:05]}  Kg6 {[%clk 0:00:15]} 49. Qxe6 {[%clk 0:00:05]}  Rxf7 {[%clk 0:00:12]} 50. Qxd5 {[%clk 0:00:05]}  a4 {[%clk 0:00:08]} 51. Qe4+ {[%clk 0:00:05]}  Kg7 {[%clk 0:00:08]} 52. Qxa4 {[%clk 0:00:05]}  Be5 {[%clk 0:00:08]} 53. Qe4 {[%clk 0:00:05]}  Bf6 {[%clk 0:00:05]} 54. f4 {[%clk 0:00:04]}  Re7 {[%clk 0:00:04]} 55. Qd3 {[%clk 0:00:04]}  Rc7 {[%clk 0:00:02]} 56. Qf5 {[%clk 0:00:03]}  Re7 {[%clk 0:00:02]} 57. Kh5 {[%clk 0:00:03]}  Rc7 {[%clk 0:00:02]} 58. Qg6+ {[%clk 0:00:03]}  Kf8 {[%clk 0:00:02]} 59. Qxf6+ {[%clk 0:00:04]}  Rf7 {[%clk 0:00:01]} 60. Qd8+ {[%clk 0:00:04]}  Kg7 {[%clk 0:00:02]} 61. Kg5 {[%clk 0:00:04]}  Kh7 {[%clk 0:00:01]} 62. Qd3+ {[%clk 0:00:04]}  Kh8 {[%clk 0:00:02]} 63. f5 {[%clk 0:00:04]}  Rg7+ {[%clk 0:00:02]} 64. Kf4 {[%clk 0:00:05]}  Kh7 {[%clk 0:00:02]} 65. Qh3+ {[%clk 0:00:05]}  Kg8 {[%clk 0:00:03]} 66. f6 {[%clk 0:00:06]}  Rg6 {[%clk 0:00:03]} 67. Qe6+ {[%clk 0:00:05]}  Kh7 {[%clk 0:00:03]} 68. Qe7+ {[%clk 0:00:04]}  Kh6 {[%clk 0:00:04]} 69. f7 {[%clk 0:00:04]}  Kh7 {[%clk 0:00:00]} 70. f8=Q+ {[%clk 0:00:04]} 1-0


[Site "https://www.chess.com"]

[Event "Titled Tuesday Blitz July 4 Early 2023"]
[White "Bauman_Guy"]
[Black "Matlakov, Maxim"]
[BlackFideId "4168003"]
[WhiteElo "2728"]
[BlackElo "2932"]
[Result "0-1"]
[Round "6"]
[TimeControl "180+2"]
[Date "2023.07.04"]
[WhiteClock "0:00:08"]
[BlackClock "0:01:00"]
[Board "18"]

1. e4 {[%clk 0:03:00]}  e5 {[%clk 0:02:55]} 2. Nf3 {[%clk 0:03:01]}  Nf6 {[%clk 0:02:55]} 3. Nxe5 {[%clk 0:03:01]}  d6 {[%clk 0:02:55]} 4. Nf3 {[%clk 0:03:01]}  Nxe4 {[%clk 0:02:55]} 5. d4 {[%clk 0:03:02]}  d5 {[%clk 0:02:55]} 6. Bd3 {[%clk 0:03:02]}  Be7 {[%clk 0:02:55]} 7. O-O {[%clk 0:03:02]}  Bf5 {[%clk 0:02:56]} 8. Nbd2 {[%clk 0:03:02]}  O-O {[%clk 0:02:51]} 9. Re1 {[%clk 0:03:01]}  Nd6 {[%clk 0:02:51]} 10. Nf1 {[%clk 0:03:01]}  c6 {[%clk 0:02:52]} 11. Bf4 {[%clk 0:03:01]}  Bxd3 {[%clk 0:02:51]} 12. Qxd3 {[%clk 0:03:01]}  Na6 {[%clk 0:02:51]} 13. c3 {[%clk 0:02:58]}  Nc7 {[%clk 0:02:51]} 14. Ng3 {[%clk 0:02:59]}  Ne6 {[%clk 0:02:51]} 15. Bd2 {[%clk 0:02:47]}  Re8 {[%clk 0:02:50]} 16. Ne5 {[%clk 0:02:47]}  Bf6 {[%clk 0:02:47]} 17. Re2 {[%clk 0:02:47]}  Bxe5 {[%clk 0:02:46]} 18. Rxe5 {[%clk 0:02:47]}  Nc4 {[%clk 0:02:46]} 19. Re2 {[%clk 0:02:38]}  Nxb2 {[%clk 0:02:46]} 20. Qb1 {[%clk 0:02:38]}  Nc4 {[%clk 0:02:46]} 21. Qxb7 {[%clk 0:02:35]}  Qb6 {[%clk 0:02:44]} 22. Rb1 {[%clk 0:02:25]}  Qxb7 {[%clk 0:02:43]} 23. Rxb7 {[%clk 0:02:25]}  Reb8 {[%clk 0:02:44]} 24. Rd7 {[%clk 0:01:59]}  Rb1+ {[%clk 0:02:28]} 25. Be1 {[%clk 0:01:57]}  g6 {[%clk 0:02:04]} 26. h4 {[%clk 0:01:55]}  h5 {[%clk 0:02:03]} 27. Kh2 {[%clk 0:01:53]}  a5 {[%clk 0:02:03]} 28. Bd2 {[%clk 0:01:35]}  a4 {[%clk 0:01:53]} 29. Bg5 {[%clk 0:01:28]}  a3 {[%clk 0:01:47]} 30. Bf6 {[%clk 0:01:27]}  Rb2 {[%clk 0:01:47]} 31. Kg1 {[%clk 0:00:45]}  Rab8 {[%clk 0:01:44]} 32. Ra7 {[%clk 0:00:44]}  R2b7 {[%clk 0:01:36]} 33. Ra6 {[%clk 0:00:41]}  Rb1+ {[%clk 0:01:36]} 34. Kh2 {[%clk 0:00:41]}  R1b6 {[%clk 0:01:37]} 35. Ra7 {[%clk 0:00:40]}  Rb2 {[%clk 0:01:31]} 36. Ra6 {[%clk 0:00:40]}  Nf4 {[%clk 0:01:22]} 37. Be5 {[%clk 0:00:20]}  Nxe2 {[%clk 0:01:21]} 38. Bxb8 {[%clk 0:00:19]}  Rxb8 {[%clk 0:01:17]} 39. Nxe2 {[%clk 0:00:19]}  Rb2 {[%clk 0:01:17]} 40. Nf4 {[%clk 0:00:17]}  Rxa2 {[%clk 0:01:18]} 41. Nd3 {[%clk 0:00:17]}  Rc2 {[%clk 0:01:17]} 42. Nb4 {[%clk 0:00:16]}  Rxc3 {[%clk 0:01:17]} 43. Nxc6 {[%clk 0:00:16]}  Kg7 {[%clk 0:01:13]} 44. Ra7 {[%clk 0:00:14]}  Rc2 {[%clk 0:01:12]} 45. f3 {[%clk 0:00:13]}  a2 {[%clk 0:01:10]} 46. Kg3 {[%clk 0:00:13]}  Nd2 {[%clk 0:01:07]} 47. Nd8 {[%clk 0:00:13]}  Nb3 {[%clk 0:01:06]} 48. Ne6+ {[%clk 0:00:12]}  Kf6 {[%clk 0:01:05]} 49. Ng5 {[%clk 0:00:12]}  Kg7 {[%clk 0:01:02]} 50. Ne6+ {[%clk 0:00:11]}  Kh6 {[%clk 0:01:02]} 51. Rxf7 {[%clk 0:00:09]}  a1=Q {[%clk 0:01:01]} 52. Ng5 {[%clk 0:00:09]}  Qe1+ {[%clk 0:01:01]} 53. Kh3 {[%clk 0:00:10]}  Qh1+ {[%clk 0:01:00]} 54. Kg3 {[%clk 0:00:08]}  Rxg2+ {[%clk 0:01:00]} 0-1


[Site "https://www.chess.com"]

[Event "Titled Tuesday Blitz July 4 Early 2023"]
[White "Panesar Vedant"]
[Black "Lenderman, Aleksandr"]
[WhiteFideId "35033018"]
[BlackFideId "2021285"]
[WhiteElo "2716"]
[BlackElo "2915"]
[Result "0-1"]
[Round "6"]
[TimeControl "180+2"]
[Date "2023.07.04"]
[WhiteClock "0:00:02"]
[BlackClock "0:00:56"]
[Board "19"]

1. e4 {[%clk 0:03:00]}  c6 {[%clk 0:02:57]} 2. Nf3 {[%clk 0:03:01]}  d5 {[%clk 0:02:57]} 3. d3 {[%clk 0:03:01]}  g6 {[%clk 0:02:56]} 4. e5 {[%clk 0:03:00]}  Bg7 {[%clk 0:02:55]} 5. d4 {[%clk 0:03:00]}  Bg4 {[%clk 0:02:54]} 6. Nbd2 {[%clk 0:02:57]}  e6 {[%clk 0:02:53]} 7. h3 {[%clk 0:02:58]}  Bxf3 {[%clk 0:02:53]} 8. Nxf3 {[%clk 0:02:59]}  c5 {[%clk 0:02:52]} 9. dxc5 {[%clk 0:02:48]}  Nd7 {[%clk 0:02:50]} 10. c3 {[%clk 0:02:41]}  Ne7 {[%clk 0:02:46]} 11. Bb5 {[%clk 0:02:35]}  O-O {[%clk 0:02:43]} 12. Bxd7 {[%clk 0:02:30]}  Qxd7 {[%clk 0:02:43]} 13. O-O {[%clk 0:02:30]}  Nc6 {[%clk 0:02:39]} 14. Bf4 {[%clk 0:02:29]}  f6 {[%clk 0:02:38]} 15. exf6 {[%clk 0:02:13]}  Rxf6 {[%clk 0:02:39]} 16. Bg3 {[%clk 0:02:00]}  Rf5 {[%clk 0:02:14]} 17. Nd4 {[%clk 0:01:54]}  Rf7 {[%clk 0:02:11]} 18. Re1 {[%clk 0:01:52]}  e5 {[%clk 0:01:54]} 19. Nxc6 {[%clk 0:01:47]}  Qxc6 {[%clk 0:01:52]} 20. Bxe5 {[%clk 0:01:48]}  Qxc5 {[%clk 0:01:50]} 21. Bd4 {[%clk 0:01:27]}  Bxd4 {[%clk 0:01:49]} 22. cxd4 {[%clk 0:01:28]}  Qb6 {[%clk 0:01:47]} 23. Qd2 {[%clk 0:01:15]}  Raf8 {[%clk 0:01:42]} 24. Re2 {[%clk 0:01:15]}  Rf4 {[%clk 0:01:38]} 25. Rd1 {[%clk 0:01:13]}  Qf6 {[%clk 0:01:31]} 26. b3 {[%clk 0:00:44]}  g5 {[%clk 0:01:23]} 27. f3 {[%clk 0:00:35]}  h5 {[%clk 0:01:23]} 28. Rde1 {[%clk 0:00:21]}  g4 {[%clk 0:01:16]} 29. hxg4 {[%clk 0:00:17]}  hxg4 {[%clk 0:01:14]} 30. Re6 {[%clk 0:00:17]}  Qxd4+ {[%clk 0:01:11]} 31. Qxd4 {[%clk 0:00:17]}  Rxd4 {[%clk 0:01:12]} 32. Rg6+ {[%clk 0:00:18]}  Kf7 {[%clk 0:01:12]} 33. Rxg4 {[%clk 0:00:19]}  Rxg4 {[%clk 0:01:11]} 34. fxg4 {[%clk 0:00:19]}  Rc8 {[%clk 0:01:10]} 35. Re2 {[%clk 0:00:17]}  Kf6 {[%clk 0:01:05]} 36. Kf2 {[%clk 0:00:17]}  Rc3 {[%clk 0:01:04]} 37. Ke1 {[%clk 0:00:15]}  Rg3 {[%clk 0:01:01]} 38. Rd2 {[%clk 0:00:14]}  Ke5 {[%clk 0:01:01]} 39. Re2+ {[%clk 0:00:12]}  Kd6 {[%clk 0:01:01]} 40. Kf2 {[%clk 0:00:12]}  Rxg4 {[%clk 0:01:01]} 41. Kf3 {[%clk 0:00:13]}  Rg7 {[%clk 0:01:01]} 42. g4 {[%clk 0:00:13]}  Rf7+ {[%clk 0:01:01]} 43. Kg3 {[%clk 0:00:14]}  d4 {[%clk 0:01:01]} 44. g5 {[%clk 0:00:14]}  Kd5 {[%clk 0:01:01]} 45. Kg4 {[%clk 0:00:13]}  d3 {[%clk 0:01:02]} 46. Re8 {[%clk 0:00:11]}  Rd7 {[%clk 0:00:59]} 47. Re1 {[%clk 0:00:10]}  Kd4 {[%clk 0:00:59]} 48. Kf4 {[%clk 0:00:09]}  Rf7+ {[%clk 0:00:57]} 49. Kg4 {[%clk 0:00:09]}  d2 {[%clk 0:00:58]} 50. Rh1 {[%clk 0:00:09]}  Kc3 {[%clk 0:00:57]} 51. g6 {[%clk 0:00:02]}  Rd7 {[%clk 0:00:56]} 0-1


[Site "https://www.chess.com"]

[Event "Titled Tuesday Blitz July 4 Early 2023"]
[White "Goryachkina, Aleksandra"]
[Black "Dardha, Daniel"]
[WhiteFideId "4147103"]
[BlackFideId "240990"]
[WhiteElo "2707"]
[BlackElo "2905"]
[Result "1-0"]
[Round "6"]
[TimeControl "180+2"]
[Date "2023.07.04"]
[WhiteClock "0:00:40"]
[BlackClock "0:01:11"]
[Board "23"]

1. e4 {[%clk 0:02:59]}  g6 {[%clk 0:03:00]} 2. Nf3 {[%clk 0:02:58]}  a5 {[%clk 0:03:01]} 3. d4 {[%clk 0:02:55]}  a4 {[%clk 0:03:01]} 4. Bd3 {[%clk 0:02:54]}  Bg7 {[%clk 0:03:01]} 5. O-O {[%clk 0:02:54]}  d6 {[%clk 0:02:57]} 6. c3 {[%clk 0:02:51]}  Nc6 {[%clk 0:02:53]} 7. Re1 {[%clk 0:02:44]}  Bd7 {[%clk 0:02:50]} 8. Nbd2 {[%clk 0:02:43]}  e5 {[%clk 0:02:48]} 9. Bb5 {[%clk 0:02:33]}  exd4 {[%clk 0:02:41]} 10. Bxc6 {[%clk 0:02:05]}  bxc6 {[%clk 0:02:41]} 11. e5 {[%clk 0:01:55]}  Ne7 {[%clk 0:02:39]} 12. exd6 {[%clk 0:01:50]}  cxd6 {[%clk 0:02:39]} 13. Nc4 {[%clk 0:01:37]}  Be6 {[%clk 0:02:35]} 14. Bg5 {[%clk 0:01:27]}  c5 {[%clk 0:02:22]} 15. cxd4 {[%clk 0:01:23]}  d5 {[%clk 0:02:20]} 16. Nce5 {[%clk 0:01:05]}  O-O {[%clk 0:02:20]} 17. Nc6 {[%clk 0:01:02]}  Nxc6 {[%clk 0:02:19]} 18. Bxd8 {[%clk 0:01:02]}  Rfxd8 {[%clk 0:02:20]} 19. dxc5 {[%clk 0:00:58]}  Bxb2 {[%clk 0:02:16]} 20. Rb1 {[%clk 0:00:55]}  a3 {[%clk 0:02:16]} 21. Qd2 {[%clk 0:00:54]}  d4 {[%clk 0:02:09]} 22. Qh6 {[%clk 0:00:46]}  Bxa2 {[%clk 0:01:52]} 23. Ng5 {[%clk 0:00:43]}  d3 {[%clk 0:01:31]} 24. Qxh7+ {[%clk 0:00:43]}  Kf8 {[%clk 0:01:31]} 25. Rxb2 {[%clk 0:00:42]}  Ne5 {[%clk 0:01:22]} 26. Qh8+ {[%clk 0:00:39]}  Ke7 {[%clk 0:01:23]} 27. Qxe5+ {[%clk 0:00:40]}  Be6 {[%clk 0:01:19]} 28. Nxe6 {[%clk 0:00:40]}  axb2 {[%clk 0:01:18]} 29. Nxd8+ {[%clk 0:00:40]}  Kxd8 {[%clk 0:01:18]} 30. Qd6+ {[%clk 0:00:40]}  Kc8 {[%clk 0:01:11]} 31. Re8+ {[%clk 0:00:40]} 1-0


[Site "https://www.chess.com"]

[Event "Titled Tuesday Blitz July 4 Early 2023"]
[White "Koziorowicz, Michal"]
[Black "Erdogmus, Yagiz Kaan"]
[WhiteFideId "21809194"]
[BlackFideId "44599790"]
[WhiteElo "2681"]
[BlackElo "2901"]
[Result "1-0"]
[Round "6"]
[TimeControl "180+2"]
[Date "2023.07.04"]
[WhiteClock "0:00:35"]
[BlackClock "0:00:01"]
[Board "25"]

1. e4 {[%clk 0:02:43]}  c5 {[%clk 0:02:58]} 2. Nf3 {[%clk 0:02:42]}  d6 {[%clk 0:02:58]} 3. Bb5+ {[%clk 0:02:42]}  Nd7 {[%clk 0:02:58]} 4. d4 {[%clk 0:02:42]}  cxd4 {[%clk 0:02:56]} 5. Qxd4 {[%clk 0:02:42]}  a6 {[%clk 0:02:53]} 6. Bxd7+ {[%clk 0:02:42]}  Bxd7 {[%clk 0:02:51]} 7. Nc3 {[%clk 0:02:42]}  Rc8 {[%clk 0:02:34]} 8. O-O {[%clk 0:02:41]}  e5 {[%clk 0:02:32]} 9. Qd3 {[%clk 0:02:39]}  h6 {[%clk 0:02:31]} 10. Rd1 {[%clk 0:02:36]}  Nf6 {[%clk 0:02:30]} 11. Nd2 {[%clk 0:02:36]}  b5 {[%clk 0:02:26]} 12. a3 {[%clk 0:02:35]}  Be6 {[%clk 0:01:54]} 13. a4 {[%clk 0:02:27]}  b4 {[%clk 0:01:52]} 14. Nd5 {[%clk 0:02:26]}  Nxd5 {[%clk 0:01:27]} 15. exd5 {[%clk 0:02:27]}  Bg4 {[%clk 0:01:28]} 16. f3 {[%clk 0:02:24]}  Qb6+ {[%clk 0:01:23]} 17. Kh1 {[%clk 0:02:22]}  Bd7 {[%clk 0:01:24]} 18. Nc4 {[%clk 0:02:21]}  Qc7 {[%clk 0:01:17]} 19. b3 {[%clk 0:02:20]}  a5 {[%clk 0:01:09]} 20. Be3 {[%clk 0:02:19]}  Rb8 {[%clk 0:01:06]} 21. f4 {[%clk 0:02:11]}  f6 {[%clk 0:00:52]} 22. fxe5 {[%clk 0:02:06]}  dxe5 {[%clk 0:00:53]} 23. Qg6+ {[%clk 0:02:00]}  Kd8 {[%clk 0:00:52]} 24. Qf7 {[%clk 0:01:55]}  Bf5 {[%clk 0:00:27]} 25. Qxc7+ {[%clk 0:01:51]}  Kxc7 {[%clk 0:00:28]} 26. Rd2 {[%clk 0:01:46]}  Ra8 {[%clk 0:00:19]} 27. d6+ {[%clk 0:01:26]}  Kc6 {[%clk 0:00:16]} 28. Rad1 {[%clk 0:01:26]}  Bg4 {[%clk 0:00:11]} 29. Rc1 {[%clk 0:01:00]}  Be6 {[%clk 0:00:11]} 30. c3 {[%clk 0:00:53]}  Kb7 {[%clk 0:00:07]} 31. cxb4 {[%clk 0:00:52]}  axb4 {[%clk 0:00:08]} 32. d7 {[%clk 0:00:49]}  Rd8 {[%clk 0:00:08]} 33. Na5+ {[%clk 0:00:42]}  Ka8 {[%clk 0:00:08]} 34. Rc6 {[%clk 0:00:39]}  Bxd7 {[%clk 0:00:05]} 35. Rxd7 {[%clk 0:00:39]}  Be7 {[%clk 0:00:02]} 36. Rxe7 {[%clk 0:00:34]}  Rd1+ {[%clk 0:00:01]} 37. Bg1 {[%clk 0:00:35]} 1-0


[Site "https://www.chess.com"]

[Event "Titled Tuesday Blitz July 4 Early 2023"]
[White "benny_aizenberg"]
[Black "Henriquez Villagra, Cristobal"]
[BlackFideId "3409350"]
[WhiteElo "2645"]
[BlackElo "2862"]
[Result "1-0"]
[Round "6"]
[TimeControl "180+2"]
[Date "2023.07.04"]
[WhiteClock "0:00:05"]
[BlackClock "0:00:09"]
[Board "28"]

1. c4 {[%clk 0:02:57]}  d6 {[%clk 0:03:00]} 2. d4 {[%clk 0:02:53]}  e5 {[%clk 0:03:00]} 3. Nc3 {[%clk 0:02:42]}  exd4 {[%clk 0:02:59]} 4. Qxd4 {[%clk 0:02:43]}  Nc6 {[%clk 0:02:59]} 5. Qd2 {[%clk 0:02:34]}  g6 {[%clk 0:02:59]} 6. b3 {[%clk 0:02:33]}  Bg7 {[%clk 0:02:59]} 7. Bb2 {[%clk 0:02:34]}  Nf6 {[%clk 0:02:55]} 8. Nf3 {[%clk 0:02:26]}  O-O {[%clk 0:02:54]} 9. e3 {[%clk 0:02:25]}  a5 {[%clk 0:02:49]} 10. Bd3 {[%clk 0:02:23]}  Bg4 {[%clk 0:02:39]} 11. O-O {[%clk 0:02:08]}  Bxf3 {[%clk 0:02:30]} 12. gxf3 {[%clk 0:02:09]}  Ne5 {[%clk 0:02:26]} 13. Be2 {[%clk 0:02:05]}  g5 {[%clk 0:01:59]} 14. Kh1 {[%clk 0:02:02]}  Qd7 {[%clk 0:01:47]} 15. Rg1 {[%clk 0:02:00]}  Qf5 {[%clk 0:01:47]} 16. e4 {[%clk 0:01:53]}  Qf4 {[%clk 0:01:43]} 17. Qxf4 {[%clk 0:01:34]}  gxf4 {[%clk 0:01:44]} 18. Bc1 {[%clk 0:01:34]}  Ng6 {[%clk 0:01:38]} 19. Bd2 {[%clk 0:01:33]}  c6 {[%clk 0:01:15]} 20. Rad1 {[%clk 0:01:25]}  Rfd8 {[%clk 0:01:14]} 21. Bf1 {[%clk 0:01:05]}  Nd7 {[%clk 0:01:10]} 22. Ne2 {[%clk 0:00:56]}  Nde5 {[%clk 0:01:11]} 23. Bxf4 {[%clk 0:00:17]}  a4 {[%clk 0:00:59]} 24. Be3 {[%clk 0:00:04]}  axb3 {[%clk 0:00:58]} 25. axb3 {[%clk 0:00:05]}  Nxf3 {[%clk 0:00:56]} 26. Rg3 {[%clk 0:00:05]}  Nfh4 {[%clk 0:00:52]} 27. f4 {[%clk 0:00:05]}  f5 {[%clk 0:00:52]} 28. Bh3 {[%clk 0:00:02]}  Rf8 {[%clk 0:00:52]} 29. exf5 {[%clk 0:00:02]}  Nxf5 {[%clk 0:00:52]} 30. Bxf5 {[%clk 0:00:03]}  Rxf5 {[%clk 0:00:53]} 31. Rxd6 {[%clk 0:00:03]}  Re8 {[%clk 0:00:53]} 32. Kg2 {[%clk 0:00:03]}  Rf7 {[%clk 0:00:46]} 33. Kf2 {[%clk 0:00:03]}  Kh8 {[%clk 0:00:32]} 34. Rd3 {[%clk 0:00:03]}  Rfe7 {[%clk 0:00:28]} 35. Ng1 {[%clk 0:00:03]}  Nh4 {[%clk 0:00:27]} 36. Rh3 {[%clk 0:00:02]}  Nf5 {[%clk 0:00:28]} 37. Bc5 {[%clk 0:00:01]}  Rf7 {[%clk 0:00:08]} 38. Ne2 {[%clk 0:00:01]}  h6 {[%clk 0:00:07]} 39. Rhf3 {[%clk 0:00:01]}  Nh4 {[%clk 0:00:07]} 40. Rh3 {[%clk 0:00:02]}  Ng6 {[%clk 0:00:07]} 41. Rdf3 {[%clk 0:00:01]}  Kh7 {[%clk 0:00:07]} 42. f5 {[%clk 0:00:01]}  Ne5 {[%clk 0:00:08]} 43. Rf4 {[%clk 0:00:02]}  Bf8 {[%clk 0:00:07]} 44. Bd4 {[%clk 0:00:02]}  Bd6 {[%clk 0:00:07]} 45. Bxe5 {[%clk 0:00:02]}  Bxe5 {[%clk 0:00:08]} 46. Rff3 {[%clk 0:00:02]}  Ref8 {[%clk 0:00:09]} 47. Ng3 {[%clk 0:00:02]}  Ra8 {[%clk 0:00:09]} 48. Ne4 {[%clk 0:00:02]}  Ra2+ {[%clk 0:00:09]} 49. Ke3 {[%clk 0:00:03]}  Rb2 {[%clk 0:00:07]} 50. Ng5+ {[%clk 0:00:03]}  Kg7 {[%clk 0:00:07]} 51. Nxf7 {[%clk 0:00:04]}  Kxf7 {[%clk 0:00:08]} 52. Ke4 {[%clk 0:00:04]}  Bg7 {[%clk 0:00:08]} 53. f6 {[%clk 0:00:04]}  Bf8 {[%clk 0:00:09]} 54. Kf5 {[%clk 0:00:05]}  Rd2 {[%clk 0:00:08]} 55. Rd3 {[%clk 0:00:04]}  Rf2+ {[%clk 0:00:09]} 56. Rhf3 {[%clk 0:00:04]}  Rxh2 {[%clk 0:00:10]} 57. Rd7+ {[%clk 0:00:04]}  Ke8 {[%clk 0:00:09]} 58. Rxb7 {[%clk 0:00:05]} 1-0


[Site "https://www.chess.com"]

[Event "Titled Tuesday Blitz July 4 Early 2023"]
[White "Samadov, Read"]
[Black "Filgueira, Hernan"]
[WhiteFideId "13417444"]
[BlackFideId "101770"]
[WhiteElo "2857"]
[BlackElo "2620"]
[Result "1-0"]
[Round "6"]
[TimeControl "180+2"]
[Date "2023.07.04"]
[WhiteClock "0:00:41"]
[BlackClock "0:00:00"]
[Board "29"]

1. d4 {[%clk 0:03:00]}  d5 {[%clk 0:02:58]} 2. c4 {[%clk 0:03:01]}  c6 {[%clk 0:02:58]} 3. Nf3 {[%clk 0:03:01]}  Nf6 {[%clk 0:02:59]} 4. Nc3 {[%clk 0:03:02]}  dxc4 {[%clk 0:02:59]} 5. a4 {[%clk 0:03:01]}  Bf5 {[%clk 0:02:58]} 6. Ne5 {[%clk 0:03:02]}  Nbd7 {[%clk 0:02:58]} 7. Nxc4 {[%clk 0:03:03]}  Nb6 {[%clk 0:02:58]} 8. Ne5 {[%clk 0:03:02]}  a5 {[%clk 0:02:53]} 9. f3 {[%clk 0:03:02]}  Nfd7 {[%clk 0:02:51]} 10. Nxd7 {[%clk 0:03:02]}  Nxd7 {[%clk 0:02:48]} 11. e4 {[%clk 0:03:02]}  Bg6 {[%clk 0:02:47]} 12. Be2 {[%clk 0:03:00]}  e5 {[%clk 0:02:46]} 13. Be3 {[%clk 0:02:59]}  Qb6 {[%clk 0:02:37]} 14. O-O {[%clk 0:02:41]}  exd4 {[%clk 0:02:30]} 15. Bxd4 {[%clk 0:02:36]}  Bc5 {[%clk 0:02:29]} 16. Bxc5 {[%clk 0:02:35]}  Nxc5 {[%clk 0:02:23]} 17. Kh1 {[%clk 0:02:31]}  Rd8 {[%clk 0:02:13]} 18. Qc2 {[%clk 0:02:25]}  O-O {[%clk 0:01:53]} 19. Bc4 {[%clk 0:02:24]}  Rd4 {[%clk 0:01:32]} 20. Ne2 {[%clk 0:02:21]}  Rd7 {[%clk 0:01:28]} 21. Nf4 {[%clk 0:02:19]}  Rfd8 {[%clk 0:01:26]} 22. Rad1 {[%clk 0:01:44]}  Kf8 {[%clk 0:00:52]} 23. h4 {[%clk 0:01:35]}  f6 {[%clk 0:00:28]} 24. Rxd7 {[%clk 0:01:24]}  Rxd7 {[%clk 0:00:25]} 25. Rc1 {[%clk 0:01:17]}  Qc7 {[%clk 0:00:00]} 26. Be6 {[%clk 0:00:41]} 1-0


[Site "https://www.chess.com"]

[Event "Titled Tuesday Blitz July 4 Early 2023"]
[White "Harshavardhan G B"]
[Black "Ismagilov, Damir"]
[WhiteFideId "25059009"]
[BlackFideId "34199982"]
[WhiteElo "2834"]
[BlackElo "2566"]
[Result "1-0"]
[Round "6"]
[TimeControl "180+2"]
[Date "2023.07.04"]
[WhiteClock "0:01:55"]
[BlackClock "0:00:05"]
[Board "32"]

1. e4 {[%clk 0:02:57]}  c5 {[%clk 0:02:59]} 2. Nf3 {[%clk 0:02:57]}  g6 {[%clk 0:02:59]} 3. d4 {[%clk 0:02:54]}  cxd4 {[%clk 0:02:59]} 4. Nxd4 {[%clk 0:02:55]}  Bg7 {[%clk 0:03:00]} 5. c4 {[%clk 0:02:54]}  Nc6 {[%clk 0:03:00]} 6. Be3 {[%clk 0:02:54]}  Nf6 {[%clk 0:02:59]} 7. Nc3 {[%clk 0:02:54]}  Ng4 {[%clk 0:02:59]} 8. Qxg4 {[%clk 0:02:53]}  Nxd4 {[%clk 0:03:00]} 9. Qd1 {[%clk 0:02:54]}  Ne6 {[%clk 0:03:00]} 10. Be2 {[%clk 0:02:54]}  O-O {[%clk 0:02:57]} 11. O-O {[%clk 0:02:54]}  d6 {[%clk 0:02:58]} 12. Qd2 {[%clk 0:02:54]}  a5 {[%clk 0:02:58]} 13. f4 {[%clk 0:02:54]}  Nc5 {[%clk 0:02:56]} 14. Bf3 {[%clk 0:02:53]}  b6 {[%clk 0:02:46]} 15. e5 {[%clk 0:02:52]}  Bb7 {[%clk 0:02:25]} 16. Bxc5 {[%clk 0:02:32]}  Bxf3 {[%clk 0:02:20]} 17. Rxf3 {[%clk 0:02:24]}  dxc5 {[%clk 0:02:04]} 18. Rd3 {[%clk 0:02:23]}  Qc8 {[%clk 0:01:47]} 19. Rd1 {[%clk 0:02:21]}  f6 {[%clk 0:01:36]} 20. Rd7 {[%clk 0:02:18]}  fxe5 {[%clk 0:01:33]} 21. Qd5+ {[%clk 0:02:07]}  Kh8 {[%clk 0:01:31]} 22. fxe5 {[%clk 0:02:07]}  e6 {[%clk 0:01:22]} 23. Qxe6 {[%clk 0:02:07]}  Qe8 {[%clk 0:01:19]} 24. Re7 {[%clk 0:02:05]}  Qc8 {[%clk 0:01:10]} 25. Rdd7 {[%clk 0:02:05]}  Rg8 {[%clk 0:01:06]} 26. Ne4 {[%clk 0:01:58]}  b5 {[%clk 0:00:44]} 27. Nd6 {[%clk 0:01:55]}  Qxd7 {[%clk 0:00:05]} 28. Nf7# {[%clk 0:01:55]} 1-0


[Site "https://www.chess.com"]